[Event "Live Chess"]
[Site "Chess.com"]
[Date "2023.09.16"]
[Round "-"]
[White "isiskrakatoa"]
[Black "mariabeatrizandrade"]
[Result "1-0"]
[WhiteElo "640"]
[BlackElo "693"]
[TimeControl "900+5"]
[EndTime "16:45:27 PDT"]
[Termination "isiskrakatoa venceu por desistência"]

1. e4 {[%clk 0:14:58.6]} 1... e5 {[%clk 0:15:02.9]} 2. Nf3 {[%clk 0:15:01]} 2...
Nf6 {[%clk 0:15:06.5]} 3. d3 {[%clk 0:14:57.9]} 3... Nc6 {[%clk 0:15:05.2]} 4.
Nc3 {[%clk 0:14:54.8]} 4... Bc5 {[%clk 0:15:02.2]} 5. Be3 {[%clk 0:14:53.6]}
5... Bxe3 {[%clk 0:14:49.8]} 6. fxe3 {[%clk 0:14:55.6]} 6... O-O {[%clk
0:14:52.7]} 7. Be2 {[%clk 0:14:59.3]} 7... d5 {[%clk 0:14:43.2]} 8. O-O {[%clk
0:14:45.9]} 8... d4 {[%clk 0:14:42.5]} 9. exd4 {[%clk 0:14:34.3]} 9... exd4
{[%clk 0:14:44.4]} 10. Nd5 {[%clk 0:14:37.2]} 10... Be6 {[%clk 0:14:11]} 11.
Nxf6+ {[%clk 0:14:36.3]} 11... Qxf6 {[%clk 0:14:13.3]} 12. c3 {[%clk 0:14:27]}
12... Rad8 {[%clk 0:13:51.9]} 13. cxd4 {[%clk 0:14:20.6]} 13... Nxd4 {[%clk
0:13:52.9]} 14. Nxd4 {[%clk 0:14:19.6]} 14... Rxd4 {[%clk 0:13:46.5]} 15. Rxf6
{[%clk 0:14:21.3]} 15... gxf6 {[%clk 0:13:43.9]} 16. Qf1 {[%clk 0:13:52.6]}
16... Kh8 {[%clk 0:13:14.9]} 17. Qxf6+ {[%clk 0:13:51.5]} 17... Kg8 {[%clk
0:13:15.4]} 18. Qxd4 {[%clk 0:13:54.8]} 1-0

[Event "Live Chess"]
[Site "Chess.com"]
[Date "2023.09.16"]
[Round "-"]
[White "felipeurbano"]
[Black "MagnusCarlos1996"]
[Result "0-1"]
[WhiteElo "1143"]
[BlackElo "1119"]
[TimeControl "900+5"]
[EndTime "16:49:43 PDT"]
[Termination "MagnusCarlos1996 venceu por xeque-mate"]

1. e4 {[%clk 0:14:48.9]} 1... e5 {[%clk 0:14:38.5]} 2. f4 {[%clk 0:14:38.4]}
2... d5 {[%clk 0:14:41.7]} 3. Qf3 {[%clk 0:14:25.3]} 3... exf4 {[%clk
0:14:27.5]} 4. d3 {[%clk 0:14:15.2]} 4... Qh4+ {[%clk 0:14:24.8]} 5. g3 {[%clk
0:14:14.8]} 5... fxg3 {[%clk 0:14:28.5]} 6. Qxg3 {[%clk 0:14:16.8]} 6... Qxg3+
{[%clk 0:14:31.9]} 7. hxg3 {[%clk 0:14:20.3]} 7... dxe4 {[%clk 0:14:35.9]} 8. d4
{[%clk 0:14:16.4]} 8... Bf5 {[%clk 0:14:32.6]} 9. Bg2 {[%clk 0:14:03.9]} 9...
Bd6 {[%clk 0:14:34.5]} 10. Ne2 {[%clk 0:14:05]} 10... Nf6 {[%clk 0:14:30]} 11.
Nbc3 {[%clk 0:14:04]} 11... Nbd7 {[%clk 0:14:23.7]} 12. Bf4 {[%clk 0:14:02.4]}
12... Bxf4 {[%clk 0:14:20.9]} 13. Nxf4 {[%clk 0:13:52.4]} 13... O-O-O {[%clk
0:14:22.9]} 14. O-O-O {[%clk 0:13:38.8]} 14... Nb6 {[%clk 0:14:22.2]} 15. b3
{[%clk 0:13:33.8]} 15... Nbd5 {[%clk 0:14:17.7]} 16. Ncxd5 {[%clk 0:13:31.4]}
16... Nxd5 {[%clk 0:14:21.8]} 17. Ne2 {[%clk 0:13:15.4]} 17... Ne3 {[%clk
0:14:20]} 18. Rdg1 {[%clk 0:13:15.1]} 18... Nxg2 {[%clk 0:14:24]} 19. Rxg2
{[%clk 0:13:18.4]} 19... Bg4 {[%clk 0:14:25.4]} 20. Ng1 {[%clk 0:13:12.4]} 20...
Rxd4 {[%clk 0:14:23.1]} 21. Rh4 {[%clk 0:13:13]} 21... Rd1+ {[%clk 0:14:19.7]}
22. Kb2 {[%clk 0:13:13.5]} 22... Bf5 {[%clk 0:14:01.3]} 23. g4 {[%clk
0:13:11.7]} 23... Bg6 {[%clk 0:14:04.3]} 24. g5 {[%clk 0:12:55.2]} 24... Rhd8
{[%clk 0:14:07.3]} 25. Nh3 {[%clk 0:12:53.2]} 25... R1d2 {[%clk 0:14:03]} 26.
Rxd2 {[%clk 0:12:52.2]} 26... Rxd2 {[%clk 0:14:06]} 27. Nf4 {[%clk 0:12:54.3]}
27... e3 {[%clk 0:14:01.9]} 28. Rh3 {[%clk 0:12:47.6]} 28... e2 {[%clk
0:13:56.8]} 29. Re3 {[%clk 0:12:49.1]} 29... Rxc2+ {[%clk 0:13:52.2]} 30. Ka3
{[%clk 0:12:46.9]} 30... Kd7 {[%clk 0:13:46.9]} 31. Nxe2 {[%clk 0:12:45.6]}
31... Rc6 {[%clk 0:13:24.9]} 32. Nd4 {[%clk 0:12:40.3]} 32... Ra6+ {[%clk
0:13:25.8]} 33. Kb2 {[%clk 0:12:40.5]} 33... c5 {[%clk 0:13:25.5]} 34. Nf3
{[%clk 0:12:40.3]} 34... Re6 {[%clk 0:13:19]} 35. Rc3 {[%clk 0:12:14.1]} 35...
b6 {[%clk 0:13:19.8]} 36. Rc1 {[%clk 0:12:05.5]} 36... Ke7 {[%clk 0:13:07.3]}
37. Ka3 {[%clk 0:11:41.4]} 37... h6 {[%clk 0:13:00.8]} 38. gxh6 {[%clk
0:11:28.6]} 38... gxh6 {[%clk 0:13:04.8]} 39. Nh4 {[%clk 0:11:31.8]} 39... h5
{[%clk 0:13:07.1]} 40. Ng2 {[%clk 0:11:24.3]} 40... Re2 {[%clk 0:13:02.7]} 41.
Nf4 {[%clk 0:11:25.4]} 41... Rf2 {[%clk 0:13:06.6]} 42. Nd5+ {[%clk 0:11:19.4]}
42... Kd6 {[%clk 0:13:10.2]} 43. Rd1 {[%clk 0:11:19.2]} 43... Bc2 {[%clk
0:13:02.6]} 44. Ne3+ {[%clk 0:11:01.6]} 44... Bxd1 {[%clk 0:13:06.1]} 45. Nxd1
{[%clk 0:11:05.5]} 45... Rf3 {[%clk 0:13:10.7]} 46. Nb2 {[%clk 0:11:04]} 46...
b5 {[%clk 0:13:14.1]} 47. Nd1 {[%clk 0:11:04.9]} 47... h4 {[%clk 0:13:17.6]} 48.
Kb2 {[%clk 0:11:07.3]} 48... h3 {[%clk 0:13:21.2]} 49. Nc3 {[%clk 0:11:10.9]}
49... Rxc3 {[%clk 0:13:24.3]} 50. Kxc3 {[%clk 0:11:14.1]} 50... h2 {[%clk
0:13:28.7]} 51. b4 {[%clk 0:11:12.5]} 51... cxb4+ {[%clk 0:13:32.1]} 52. Kxb4
{[%clk 0:11:10.3]} 52... h1=Q {[%clk 0:13:35.3]} 53. a4 {[%clk 0:11:12.6]} 53...
bxa4 {[%clk 0:13:37.4]} 54. Kxa4 {[%clk 0:11:09.9]} 54... Qb1 {[%clk 0:13:40]}
55. Ka5 {[%clk 0:11:06.7]} 55... Kc5 {[%clk 0:13:43.9]} 56. Ka6 {[%clk
0:10:43.6]} 56... Qb6# {[%clk 0:13:47.1]} 0-1

[Event "Live Chess"]
[Site "Chess.com"]
[Date "2023.09.16"]
[Round "-"]
[White "felipeurbano"]
[Black "mariabeatrizandrade"]
[Result "1-0"]
[WhiteElo "1146"]
[BlackElo "684"]
[TimeControl "900+5"]
[EndTime "16:52:06 PDT"]
[Termination "felipeurbano venceu por desistência"]

1. e4 {[%clk 0:15:00.1]} 1... e5 {[%clk 0:15:03.4]} 2. Nf3 {[%clk 0:14:57.6]}
2... Nf6 {[%clk 0:15:06.4]} 3. Nxe5 {[%clk 0:14:58.6]} 3... d6 {[%clk
0:15:09.4]} 4. Nf3 {[%clk 0:14:46.3]} 4... Nxe4 {[%clk 0:15:12]} 5. Qe2 {[%clk
0:14:46.5]} 5... Bf5 {[%clk 0:15:13.1]} 6. Nd4 {[%clk 0:14:43.6]} 6... g6 {[%clk
0:14:51.6]} 7. d3 {[%clk 0:14:43.2]} 7... Qe7 {[%clk 0:14:47.8]} 8. Nxf5 {[%clk
0:14:44.2]} 8... gxf5 {[%clk 0:14:48.5]} 9. dxe4 {[%clk 0:14:42.9]} 9... fxe4
{[%clk 0:14:51.7]} 10. Qb5+ {[%clk 0:14:41.2]} 10... Nc6 {[%clk 0:14:47.5]} 11.
Qxb7 {[%clk 0:14:43.4]} 1-0

[Event "Live Chess"]
[Site "Chess.com"]
[Date "2023.09.16"]
[Round "-"]
[White "MAndrade_Marques"]
[Black "ThiagoFantim"]
[Result "0-1"]
[WhiteElo "1622"]
[BlackElo "1670"]
[TimeControl "900+5"]
[EndTime "16:53:56 PDT"]
[Termination "ThiagoFantim venceu por desistência"]

1. c4 {[%clk 0:15:01.5]} 1... g6 {[%clk 0:15:00.9]} 2. Nc3 {[%clk 0:15:05.1]}
2... Bg7 {[%clk 0:15:04.3]} 3. d4 {[%clk 0:15:09.5]} 3... e6 {[%clk 0:15:08.1]}
4. e4 {[%clk 0:15:12.9]} 4... Ne7 {[%clk 0:15:10.2]} 5. Nf3 {[%clk 0:15:15.7]}
5... b6 {[%clk 0:15:14.2]} 6. Be3 {[%clk 0:15:16.9]} 6... Bb7 {[%clk 0:15:18.3]}
7. Bd3 {[%clk 0:15:16.2]} 7... d5 {[%clk 0:15:14.5]} 8. cxd5 {[%clk 0:15:09.4]}
8... exd5 {[%clk 0:15:18]} 9. e5 {[%clk 0:15:12.5]} 9... c5 {[%clk 0:15:17.8]}
10. dxc5 {[%clk 0:14:46.4]} 10... Nec6 {[%clk 0:15:16.2]} 11. cxb6 {[%clk
0:14:23.4]} 11... axb6 {[%clk 0:15:21.1]} 12. Bb5 {[%clk 0:14:10.9]} 12... O-O
{[%clk 0:15:14.8]} 13. Bd4 {[%clk 0:12:47.7]} 13... Nxd4 {[%clk 0:14:57.4]} 14.
Qxd4 {[%clk 0:12:50.3]} 14... Re8 {[%clk 0:14:57.9]} 15. Bxe8 {[%clk 0:12:50]}
15... Qxe8 {[%clk 0:15:00.2]} 16. O-O {[%clk 0:12:46]} 16... Ba6 {[%clk
0:14:58.3]} 17. Rfe1 {[%clk 0:12:46.1]} 17... Bc4 {[%clk 0:15:01.2]} 18. b3
{[%clk 0:12:45.5]} 18... Nc6 {[%clk 0:15:05.2]} 19. Qxb6 {[%clk 0:12:33.7]}
19... Ra6 {[%clk 0:14:49.6]} 20. Qe3 {[%clk 0:12:28.1]} 20... d4 {[%clk
0:14:46.9]} 21. Nxd4 {[%clk 0:12:30.8]} 21... Nxd4 {[%clk 0:14:48.8]} 22. Qxd4
{[%clk 0:12:32.6]} 22... Be6 {[%clk 0:14:50.4]} 23. Ne4 {[%clk 0:12:09.4]} 23...
Qc6 {[%clk 0:14:28.3]} 24. Nf6+ {[%clk 0:12:02.2]} 24... Bxf6 {[%clk 0:14:29.1]}
25. exf6 {[%clk 0:12:07.1]} 25... Ra8 {[%clk 0:14:28.2]} 26. Rac1 {[%clk
0:11:58.7]} 26... Qe8 {[%clk 0:14:28.3]} 27. Re2 {[%clk 0:11:35.2]} 27... Rc8
{[%clk 0:14:18.1]} 28. Rce1 {[%clk 0:11:23.4]} 28... Qc6 {[%clk 0:14:19.8]} 29.
Qf4 {[%clk 0:10:52.8]} 29... Qc3 {[%clk 0:14:15.6]} 30. Rxe6 {[%clk 0:10:33.9]}
30... fxe6 {[%clk 0:14:13.2]} 31. f7+ {[%clk 0:10:33.8]} 31... Kf8 {[%clk
0:14:08.6]} 32. Qd6+ {[%clk 0:10:19.6]} 32... Kxf7 {[%clk 0:14:08.9]} 33. Qxe6+
{[%clk 0:10:24]} 33... Kg7 {[%clk 0:14:12.5]} 34. Qe7+ {[%clk 0:10:21.9]} 34...
Kh6 {[%clk 0:14:14.7]} 35. Qh4+ {[%clk 0:10:25.2]} 35... Kg7 {[%clk 0:14:18.3]}
36. Re7+ {[%clk 0:10:23.7]} 36... Kf8 {[%clk 0:14:17.1]} 37. f4 {[%clk
0:09:54.7]} 37... Qc5+ {[%clk 0:14:18.6]} 38. Kf1 {[%clk 0:09:33.4]} 38... Qxe7
{[%clk 0:14:21.4]} 0-1

[Event "Live Chess"]
[Site "Chess.com"]
[Date "2023.09.16"]
[Round "-"]
[White "MagnusCarlos1996"]
[Black "isiskrakatoa"]
[Result "1-0"]
[WhiteElo "1129"]
[BlackElo "634"]
[TimeControl "900+5"]
[EndTime "16:54:14 PDT"]
[Termination "MagnusCarlos1996 venceu por xeque-mate"]

1. e4 {[%clk 0:15:03.4]} 1... e5 {[%clk 0:15:02]} 2. Nf3 {[%clk 0:15:07.2]} 2...
Nc6 {[%clk 0:15:00.1]} 3. d4 {[%clk 0:15:10.7]} 3... exd4 {[%clk 0:14:49.9]} 4.
Nxd4 {[%clk 0:15:14]} 4... d5 {[%clk 0:14:46.8]} 5. Nxc6 {[%clk 0:15:05]} 5...
bxc6 {[%clk 0:14:45]} 6. Qe2 {[%clk 0:15:07.3]} 6... Be7 {[%clk 0:14:44.5]} 7.
Nc3 {[%clk 0:14:52.5]} 7... Nf6 {[%clk 0:14:47.8]} 8. exd5 {[%clk 0:14:54.3]}
8... Nxd5 {[%clk 0:14:50]} 9. Bd2 {[%clk 0:14:51.9]} 9... Nxc3 {[%clk
0:14:50.1]} 10. Bxc3 {[%clk 0:14:55.4]} 10... O-O {[%clk 0:14:49.4]} 11. Rd1
{[%clk 0:14:42.6]} 11... Bd7 {[%clk 0:14:46.4]} 12. g3 {[%clk 0:14:25.9]} 12...
Qc8 {[%clk 0:14:48.9]} 13. Bg2 {[%clk 0:14:24]} 13... Bg4 {[%clk 0:14:50.8]} 14.
f3 {[%clk 0:14:20]} 14... Be6 {[%clk 0:14:34]} 15. O-O {[%clk 0:14:21.2]} 15...
Bc5+ {[%clk 0:14:29.5]} 16. Kh1 {[%clk 0:14:22.4]} 16... f5 {[%clk 0:14:14.9]}
17. Qe5 {[%clk 0:14:20.7]} 17... Bd6 {[%clk 0:14:11.4]} 18. Qxg7# {[%clk
0:14:23.2]} 1-0

[Event "Live Chess"]
[Site "Chess.com"]
[Date "2023.09.16"]
[Round "-"]
[White "marqueslua97"]
[Black "advRafael"]
[Result "1-0"]
[WhiteElo "1899"]
[BlackElo "1682"]
[TimeControl "900+5"]
[EndTime "16:54:29 PDT"]
[Termination "marqueslua97 venceu por desistência"]

1. e4 {[%clk 0:15:01.5]} 1... e6 {[%clk 0:15:02.3]} 2. d3 {[%clk 0:15:05.1]}
2... d5 {[%clk 0:15:03.7]} 3. Nd2 {[%clk 0:15:09.2]} 3... Nf6 {[%clk 0:15:03.9]}
4. Ngf3 {[%clk 0:15:04.6]} 4... dxe4 {[%clk 0:14:49]} 5. dxe4 {[%clk 0:15:08]}
5... Bc5 {[%clk 0:14:47.8]} 6. g3 {[%clk 0:14:55.8]} 6... O-O {[%clk 0:14:47.8]}
7. Bg2 {[%clk 0:14:59.8]} 7... Nc6 {[%clk 0:14:49.2]} 8. O-O {[%clk 0:15:01.2]}
8... Qe7 {[%clk 0:14:41.3]} 9. Qe2 {[%clk 0:15:00.8]} 9... e5 {[%clk 0:14:39.4]}
10. Re1 {[%clk 0:15:02.2]} 10... Be6 {[%clk 0:14:24.2]} 11. Nf1 {[%clk
0:15:03.2]} 11... Rad8 {[%clk 0:14:00.3]} 12. Be3 {[%clk 0:15:00.7]} 12... Bxe3
{[%clk 0:13:13]} 13. Nxe3 {[%clk 0:14:44.6]} 13... Nd4 {[%clk 0:12:56.5]} 14.
Nxd4 {[%clk 0:14:41.1]} 14... exd4 {[%clk 0:12:59]} 15. Nf5 {[%clk 0:14:33.5]}
15... Qc5 {[%clk 0:12:37.7]} 16. e5 {[%clk 0:13:52.1]} 16... Nd5 {[%clk
0:12:02.2]} 17. Qe4 {[%clk 0:12:11.7]} 17... Bxf5 {[%clk 0:09:19.7]} 18. Qxf5
{[%clk 0:12:16.6]} 18... Ne7 {[%clk 0:09:21.3]} 19. Qh5 {[%clk 0:11:22.3]} 19...
Ng6 {[%clk 0:08:59.1]} 20. Be4 {[%clk 0:11:04.1]} 20... Rfe8 {[%clk 0:08:52.4]}
21. Bd3 {[%clk 0:10:51]} 21... b6 {[%clk 0:07:11.5]} 22. f4 {[%clk 0:10:42.3]}
22... Qb4 {[%clk 0:06:55.9]} 23. e6 {[%clk 0:09:16.7]} 23... Rxe6 {[%clk
0:06:09.9]} 24. Rxe6 {[%clk 0:09:10]} 24... fxe6 {[%clk 0:06:13.1]} 25. f5
{[%clk 0:08:42.6]} 25... exf5 {[%clk 0:06:00.5]} 26. Rf1 {[%clk 0:08:37.5]}
26... Ne7 {[%clk 0:05:20]} 27. Qh4 {[%clk 0:07:19]} 27... Rf8 {[%clk 0:05:19.7]}
28. a3 {[%clk 0:07:08.9]} 28... Qd6 {[%clk 0:05:15]} 29. g4 {[%clk 0:06:46.1]}
29... f4 {[%clk 0:04:16.4]} 30. Qxh7+ {[%clk 0:05:59.5]} 30... Kf7 {[%clk
0:04:18.7]} 31. Qh5+ {[%clk 0:05:53.5]} 31... Kg8 {[%clk 0:04:21]} 32. Bh7+
{[%clk 0:05:44.5]} 1-0

[Event "Live Chess"]
[Site "Chess.com"]
[Date "2023.09.16"]
[Round "-"]
[White "felipeurbano"]
[Black "MAndrade_Marques"]
[Result "0-1"]
[WhiteElo "1143"]
[BlackElo "1623"]
[TimeControl "900+5"]
[EndTime "16:59:13 PDT"]
[Termination "MAndrade_Marques venceu por xeque-mate"]

1. e4 {[%clk 0:15:03.6]} 1... e5 {[%clk 0:15:03.8]} 2. Nf3 {[%clk 0:15:01.8]}
2... Nc6 {[%clk 0:15:08.3]} 3. Bc4 {[%clk 0:15:02.7]} 3... Bc5 {[%clk
0:15:12.3]} 4. O-O {[%clk 0:15:05]} 4... d6 {[%clk 0:15:16]} 5. d3 {[%clk
0:15:02.5]} 5... Nf6 {[%clk 0:15:19.9]} 6. Bg5 {[%clk 0:15:04.3]} 6... h6 {[%clk
0:15:22.9]} 7. Bh4 {[%clk 0:15:07.8]} 7... O-O {[%clk 0:15:26.6]} 8. Nc3 {[%clk
0:15:03.9]} 8... Be6 {[%clk 0:15:26.2]} 9. Bxe6 {[%clk 0:14:50.7]} 9... fxe6
{[%clk 0:15:29.2]} 10. Na4 {[%clk 0:14:39.6]} 10... Bb6 {[%clk 0:15:29.6]} 11.
Nc3 {[%clk 0:14:25.9]} 11... g5 {[%clk 0:15:31.3]} 12. Bg3 {[%clk 0:14:27]}
12... Nh5 {[%clk 0:15:30.1]} 13. h3 {[%clk 0:14:26.3]} 13... Nxg3 {[%clk
0:15:33.7]} 14. Kh2 {[%clk 0:14:22.4]} 14... Nh5 {[%clk 0:15:34.1]} 15. Ne2
{[%clk 0:14:11.1]} 15... Rxf3 {[%clk 0:15:26.4]} 16. gxf3 {[%clk 0:14:12]} 16...
Nf4 {[%clk 0:15:30.5]} 17. Ng3 {[%clk 0:14:09.5]} 17... Qf8 {[%clk 0:15:21.4]}
18. Rh1 {[%clk 0:13:53.8]} 18... Bxf2 {[%clk 0:15:23.8]} 19. Qf1 {[%clk
0:13:45.8]} 19... Bxg3+ {[%clk 0:15:22.8]} 20. Kxg3 {[%clk 0:13:48.8]} 20...
Nh5+ {[%clk 0:15:15.9]} 21. Kf2 {[%clk 0:13:49.5]} 21... Qf4 {[%clk 0:15:12.3]}
22. Rd1 {[%clk 0:13:44.1]} 22... Nd4 {[%clk 0:15:13]} 23. Kg2 {[%clk 0:13:30.9]}
23... Qg3# {[%clk 0:15:13.5]} 0-1

[Event "Live Chess"]
[Site "Chess.com"]
[Date "2023.09.16"]
[Round "-"]
[White "mariabeatrizandrade"]
[Black "ThiagoFantim"]
[Result "0-1"]
[WhiteElo "684"]
[BlackElo "1670"]
[TimeControl "900+5"]
[EndTime "17:02:14 PDT"]
[Termination "ThiagoFantim venceu por desistência"]

1. e4 {[%clk 0:15:03.1]} 1... c5 {[%clk 0:15:00]} 2. Nf3 {[%clk 0:15:06.6]} 2...
Nc6 {[%clk 0:15:03.2]} 3. d4 {[%clk 0:15:10.6]} 3... cxd4 {[%clk 0:15:01.1]} 4.
Nxd4 {[%clk 0:15:13.5]} 4... Nxd4 {[%clk 0:15:05.3]} 5. Qxd4 {[%clk 0:15:16.9]}
5... f6 {[%clk 0:15:06.1]} 6. Qe3 {[%clk 0:15:19.6]} 6... e5 {[%clk 0:15:09.3]}
7. Nc3 {[%clk 0:15:23.2]} 7... Bb4 {[%clk 0:15:12.7]} 8. Bd2 {[%clk 0:15:24.7]}
8... Ne7 {[%clk 0:15:16.1]} 9. O-O-O {[%clk 0:15:27.8]} 9... d6 {[%clk
0:15:08.5]} 10. f4 {[%clk 0:15:31.1]} 10... Bg4 {[%clk 0:15:06.6]} 11. Be2
{[%clk 0:15:26.6]} 11... Bxe2 {[%clk 0:15:09.7]} 12. Qxe2 {[%clk 0:15:28.5]}
12... Nc6 {[%clk 0:14:58.9]} 13. Nd5 {[%clk 0:15:05.3]} 13... Nd4 {[%clk
0:14:54.7]} 14. Qc4 {[%clk 0:14:52.9]} 14... Bxd2+ {[%clk 0:14:50.3]} 15. Rxd2
{[%clk 0:14:50.5]} 15... Rc8 {[%clk 0:14:53.2]} 16. Qa4+ {[%clk 0:14:49.5]}
16... Rc6 {[%clk 0:14:33.5]} 17. Qxa7 {[%clk 0:14:33.5]} 17... O-O {[%clk
0:14:16.4]} 18. Qxb7 {[%clk 0:14:34.6]} 18... Rf7 {[%clk 0:14:18.6]} 19. Qb4
{[%clk 0:13:52.7]} 19... Ra7 {[%clk 0:13:46.1]} 20. a3 {[%clk 0:13:34.7]} 20...
Qc8 {[%clk 0:13:28.2]} 21. Nc3 {[%clk 0:13:20.1]} 21... Rb7 {[%clk 0:13:25.3]}
22. Nd5 {[%clk 0:12:44.4]} 22... Kh8 {[%clk 0:13:21.8]} 23. Ne7 {[%clk
0:12:36.8]} 23... Rxe7 {[%clk 0:13:15.2]} 0-1

[Event "Live Chess"]
[Site "Chess.com"]
[Date "2023.09.16"]
[Round "-"]
[White "Orionchess"]
[Black "Ilisunesp"]
[Result "1-0"]
[WhiteElo "1796"]
[BlackElo "1545"]
[TimeControl "900+5"]
[EndTime "17:02:41 PDT"]
[Termination "Orionchess venceu por desistência"]

1. d4 {[%clk 0:15:03.4]} 1... d5 {[%clk 0:15:04.1]} 2. e3 {[%clk 0:15:07.4]}
2... Nf6 {[%clk 0:15:08.4]} 3. Bd3 {[%clk 0:15:11.9]} 3... e6 {[%clk 0:15:12.8]}
4. Nd2 {[%clk 0:15:16.4]} 4... Bd6 {[%clk 0:15:16.4]} 5. f4 {[%clk 0:15:20.8]}
5... c6 {[%clk 0:15:20.6]} 6. Ngf3 {[%clk 0:15:25.2]} 6... Nbd7 {[%clk
0:15:24.3]} 7. c3 {[%clk 0:15:29.6]} 7... c5 {[%clk 0:15:28]} 8. Ne5 {[%clk
0:15:33.2]} 8... c4 {[%clk 0:15:26.9]} 9. Bc2 {[%clk 0:15:36.9]} 9... Be7 {[%clk
0:15:05.6]} 10. e4 {[%clk 0:15:36]} 10... Nxe5 {[%clk 0:15:05]} 11. fxe5 {[%clk
0:15:38.3]} 11... Nd7 {[%clk 0:15:00.7]} 12. exd5 {[%clk 0:15:41.2]} 12... exd5
{[%clk 0:15:03.3]} 13. O-O {[%clk 0:15:44.2]} 13... Nb6 {[%clk 0:15:02.7]} 14.
Qf3 {[%clk 0:15:46.2]} 14... Be6 {[%clk 0:15:06.5]} 15. Bf5 {[%clk 0:15:47]}
15... O-O {[%clk 0:14:39.9]} 16. Bc2 {[%clk 0:15:45.8]} 16... f5 {[%clk
0:14:37.2]} 17. Qe2 {[%clk 0:15:39.2]} 17... Bg5 {[%clk 0:12:44.5]} 18. Nf3
{[%clk 0:15:44.1]} 18... Bxc1 {[%clk 0:12:48.3]} 19. Raxc1 {[%clk 0:15:38.9]}
19... Nc8 {[%clk 0:11:38.7]} 20. h4 {[%clk 0:15:37.5]} 20... Ne7 {[%clk
0:11:40.3]} 21. Ng5 {[%clk 0:15:40.4]} 21... Qd7 {[%clk 0:11:39.4]} 22. g4
{[%clk 0:15:34.7]} 22... fxg4 {[%clk 0:11:38.6]} 23. Bxh7+ {[%clk 0:15:36.1]}
23... Kh8 {[%clk 0:11:42.8]} 24. Qc2 {[%clk 0:15:34.1]} 24... Bf5 {[%clk
0:11:21.5]} 25. Bxf5 {[%clk 0:15:02.5]} 25... Nxf5 {[%clk 0:11:08.2]} 26. e6
{[%clk 0:15:06.4]} 26... Qd6 {[%clk 0:08:49]} 27. Nf7+ {[%clk 0:14:02.6]} 27...
Rxf7 {[%clk 0:08:50.6]} 28. exf7 {[%clk 0:14:03.9]} 28... Ne3 {[%clk 0:08:54.7]}
29. Qh2 {[%clk 0:13:58.3]} 29... Qxh2+ {[%clk 0:07:39.9]} 30. Kxh2 {[%clk
0:13:58.7]} 30... Nxf1+ {[%clk 0:07:43.8]} 31. Rxf1 {[%clk 0:14:01.7]} 31... Rf8
{[%clk 0:07:47.4]} 32. Kg3 {[%clk 0:14:05.9]} 32... g6 {[%clk 0:07:51.6]} 33.
Kxg4 {[%clk 0:14:10.2]} 33... Kg7 {[%clk 0:07:53.2]} 34. Kg5 {[%clk 0:14:13.7]}
34... Rxf7 {[%clk 0:07:49.9]} 35. Rxf7+ {[%clk 0:14:17.2]} 35... Kxf7 {[%clk
0:07:54.1]} 36. h5 {[%clk 0:14:08.4]} 36... gxh5 {[%clk 0:07:56.6]} 37. Kxh5
{[%clk 0:14:12.3]} 37... a5 {[%clk 0:07:35.7]} 38. Kg5 {[%clk 0:14:13.6]} 38...
Ke6 {[%clk 0:07:38.4]} 39. a4 {[%clk 0:14:14.3]} 39... b6 {[%clk 0:07:17.1]} 40.
Kg6 {[%clk 0:14:16.7]} 40... Kd7 {[%clk 0:03:37.5]} 41. Kf6 {[%clk 0:14:11]}
41... Kd6 {[%clk 0:03:33.9]} 42. Kf7 {[%clk 0:14:14.3]} 42... Kd7 {[%clk
0:03:35.2]} 43. Kf6 {[%clk 0:14:13.9]} 43... Kd6 {[%clk 0:03:37.2]} 44. Kf5
{[%clk 0:14:17.4]} 44... Kc7 {[%clk 0:00:34]} 45. Ke5 {[%clk 0:14:18.3]} 45...
Kc6 {[%clk 0:00:35.5]} 46. Ke6 {[%clk 0:14:22]} 46... b5 {[%clk 0:00:33.3]} 47.
axb5+ {[%clk 0:14:22.6]} 47... Kxb5 {[%clk 0:00:37.6]} 48. Kxd5 {[%clk
0:14:26.6]} 48... a4 {[%clk 0:00:41.9]} 49. Ke6 {[%clk 0:14:28.8]} 1-0